bitfinex-derivatives/quotes_ETHF0:USTF0_20251204
["timestamp","ask_amount","ask_price","bid_price","bid_amount"]
[1764827480134,2.17528173,3176.3,3176.2,3.75469872]
[1764827480638,0.75846443,3176.3,3176.2,3.75469872]
[1764827481242,2.58116443,3176.3,3176.2,3.75469872]
[1764827481739,4.45886443,3176.3,3176.2,1.83739872]
[1764827482341,4.77657875,3176.3,3176.2,0.00319872]
[1764827483141,4.77657875,3176.3,3176.2,1.83739872]
[1764827483339,4.77657875,3176.3,3176.2,0.00319872]
[1764827484036,4.77657875,3176.3,3176.2,1.83739872]
[1764827484438,4.77657875,3176.3,3176.2,0.00319872]
[1764827487539,4.77657875,3176.3,3176.2,3.75469872]
[1764827488642,2.89887875,3176.3,3176.2,3.75469872]
[1764827489146,4.77657875,3176.3,3176.2,0.00319872]
[1764827490447,4.77657875,3176.3,3176.2,1.83739872]
[1764827490645,6.19339605,3176.3,3176.2,3.75469872]
[1764827490842,6.19339605,3176.3,3176.2,1.83739872]
[1764827491152,6.19339605,3176.3,3176.2,0.00319872]
[1764827493352,6.19339605,3176.3,3176.2,1.83739872]
[1764827494249,6.19339605,3176.3,3176.2,3.75469872]
[1764827494250,1.07617875,3176.3,3176.2,3.75469872]
[1764827496443,2.75087875,3176.3,3176.2,3.75469872]
[1764827497048,4.61787875,3176.3,3176.2,3.75469872]
[1764827497750,4.61787875,3176.3,3176.2,1.83739872]
[1764827498145,4.61787875,3176.3,3176.2,3.73459872]
[1764827499651,2.75087875,3176.3,3176.2,3.73459872]
[1764827500855,4.61787875,3176.3,3176.2,1.62789872]
[1764827502454,4.61787875,3176.3,3176.2,0.00319872]
[1764827506453,6.07269558,3176.3,3176.2,0.00319872]
[1764827509747,3.1814,3175.6,3175.5,4.2989]
[1764827509947,5.73920794,3175.6,3175.5,4.2989]
[1764827510144,0.75846443,3175.6,3175.5,4.2989]
[1764827510349,3.04861683,3175.8,3175.7,3.187]
[1764827510549,5.71379288,3175.8,3175.7,1.6247]
[1764827510750,5.71379288,3175.8,3175.7,0.00404635]
[1764827510951,4.25897605,3175.8,3175.7,1.62874635]
[1764827511262,4.25897605,3175.8,3175.7,0.00404635]
[1764827513050,4.25897605,3175.8,3175.0,4.3197]
[1764827513356,4.25897605,3175.8,3175.1,0.06147299]
[1764827513357,3.1814,3175.2,3175.1,0.06147299]
[1764827513554,3.1814,3175.2,3175.1,3.24847299]
[1764827513555,2.35334665,3175.2,3175.1,3.24847299]
[1764827513762,0.75954665,3175.2,3175.1,3.24847299]
[1764827513960,2.3524717,3175.4,3175.3,3.187]
[1764827514163,4.26078307,3175.4,3175.3,1.62857602]
[1764827514360,5.7155999,3175.4,3175.3,1.62857602]
[1764827514856,5.7155999,3175.4,3175.3,0.00387602]
[1764827515258,5.3979387,3175.4,3175.3,0.00387602]
[1764827515756,5.3979387,3175.4,3175.3,1.62857602]
[1764827516159,5.3979387,3175.4,3175.3,0.00387602]
[1764827516453,5.3979387,3175.4,3174.0,3.20546202]
[1764827516454,3.2078,3173.6,3171.5,0.25198411]
[1764827516653,0.15745,3175.3,3171.9,3.187]
[1764827516654,3.2078,3172.0,3171.9,3.187]
[1764827516863,40.80472092,3173.0,3172.5,0.9571]
[1764827517053,0.00472092,3173.0,3172.9,3.187]
[1764827517254,3.97402966,3173.0,3172.9,3.1906654]
[1764827517453,3.97402966,3173.0,3172.9,9.1906654]
[1764827517654,3.2078,3173.2,3173.1,3.187]
[1764827517853,44.0078,3173.7,3173.6,3.187]
[1764827518055,5.02992942,3173.7,3173.6,3.187]
[1764827518255,5.02992942,3173.7,3173.6,1.6247]
[1764827518659,4.66562841,3173.7,3173.6,1.6247]
[1764827519057,5.03253393,3173.7,3173.6,1.6247]
[1764827519257,4.66562841,3173.7,3173.6,1.6247]
[1764827519461,4.66562841,3173.7,3173.6,3.187]
[1764827519462,3.21081158,3173.7,3173.6,3.187]
[1764827520059,0.00301158,3173.7,3173.6,3.187]
[1764827520870,3.2078,3174.5,3174.4,3.187]
[1764827521168,4.66261683,3175.4,3175.3,3.187]
[1764827521350,0.36683474,3175.4,3175.3,3.187]
[1764827521554,1.45481683,3175.6,3175.5,4.1441]
[1764827521750,1.82576446,3175.6,3175.5,0.96021262]
[1764827521959,1.82576446,3175.6,3175.5,4.14721262]
[1764827522360,0.37094763,3175.6,3175.5,0.96021262]
[1764827522657,0.00399896,3175.6,3175.5,0.96021262]
[1764827523459,1.00319896,3175.6,3175.5,0.96021262]
[1764827523761,1.37014763,3175.6,3175.5,0.96021262]
[1764827524261,1.37014763,3175.6,3175.5,0.00311262]
[1764827526851,0.4996,3175.1,3174.9,3.2078]
[1764827527055,0.9992,3175.0,3174.9,3.8379]
[1764827527463,41.7992,3175.0,3174.9,3.8379]
[1764827527662,41.7992,3175.0,3174.5,4.1649]
[1764827527865,41.7992,3175.0,3174.5,4.16767966]
[1764827528067,41.2996,3175.0,3174.9,5.4292]
[1764827528261,40.8,3175.0,3174.9,5.4292]
[1764827528461,40.8,3175.0,3174.9,8.637]
[1764827529166,12.557,3175.4,3175.0,2.3961]
[1764827529367,0.36705816,3175.3,3175.0,2.3961]
[1764827529666,41.16705816,3175.3,3175.2,5.4292]
[1764827529866,42.17002399,3175.3,3175.2,5.4292]
[1764827530165,42.17002399,3175.3,3175.0,7.8253]
[1764827530371,1.50256583,3175.2,3175.1,3.8379]
[1764827531071,1.50256583,3175.2,3175.1,5.4292]
[1764827531668,1.00296583,3175.2,3175.1,5.4292]
[1764827532770,1.50256583,3175.2,3175.1,5.4292]
[1764827533372,1.00296583,3175.2,3175.1,5.4292]
[1764827533571,1.50256583,3175.2,3175.1,5.4292]
[1764827534271,0.9992,3175.1,3175.0,6.234]
[1764827534472,2.00216583,3175.1,3175.0,6.234]
[1764827534973,2.00216583,3175.1,3175.0,7.8253]
[1764827535573,2.00216583,3175.1,3175.0,6.234]
[1764827535970,2.00216583,3175.1,3175.0,7.8253]
[1764827536167,2.36963564,3175.1,3175.0,7.8253]
[1764827536363,2.36963564,3175.1,3174.5,4.16767966]
[1764827536364,0.4996,3174.6,3174.5,9.59687966]
[1764827536573,1.00296583,3174.6,3174.5,9.59687966]
[1764827540570,1.50256583,3174.6,3174.5,9.59687966]
[1764827540868,1.00296583,3174.6,3174.5,9.59687966]
[1764827544481,2.23660289,3175.5,3175.4,5.4292]
[1764827544670,5.98411918,3176.0,3175.5,7.8253]
[1764827544671,1.45532529,3175.7,3175.5,7.8253]
[1764827544872,0.37194915,3175.6,3175.5,7.8253]
[1764827545877,1.82727444,3175.6,3175.5,7.8253]
[1764827546673,0.37194915,3175.6,3175.5,7.8253]
[1764827547374,1.45532529,3175.8,3175.5,7.8253]
[1764827547375,3.2078,3176.0,3175.8,5.4292]
[1764827547973,1.46005371,3175.9,3175.8,5.4292]
[1764827548269,1.46343877,3175.9,3175.8,5.4292]
[1764827548477,0.00811348,3175.9,3175.8,5.4292]
[1764827548878,1.348e-05,3175.9,3175.8,8.637]
[1764827549077,1.348e-05,3175.9,3175.8,5.4292]
[1764827556381,0.94668142,3175.9,3175.8,5.4292]
[1764827556587,2.8533,3175.6,3175.5,10.264]
[1764827556885,3.79996794,3175.6,3175.5,10.264]
[1764827557386,0.94666794,3175.6,3175.5,10.264]
[1764827557982,2.09481389,3175.6,3175.5,6.451]
[1764827558202,1.348e-05,3175.9,3175.5,10.264]
[1764827558376,3.7321,3175.6,3175.5,10.264]
[1764827558577,1.348e-05,3175.9,3175.5,10.264]
[1764827558777,1.348e-05,3175.9,3175.5,6.451]
[1764827559386,7.89674237,3175.9,3175.8,3.813]
[1764827560180,7.89674237,3175.9,3175.8,7.8679]
[1764827560385,0.36464237,3175.9,3175.8,7.8679]
[1764827562782,0.36464237,3175.9,3175.5,2.3961]
[1764827562783,1.348e-05,3175.9,3175.5,2.3961]
[1764827563487,4.08394237,3175.9,3175.8,7.3032]
[1764827563786,7.80324237,3175.9,3175.8,7.3032]
[1764827564580,7.80324039,3175.9,3175.8,7.3032]
[1764827565087,7.80324039,3175.9,3175.8,3.5499]
[1764827565292,7.80324039,3175.9,3175.5,2.3961]
[1764827565590,7.43861348,3175.9,3175.8,3.5499]
[1764827565781,7.80326827,3175.9,3175.8,3.5499]
[1764827565983,7.80326827,3175.9,3175.8,7.3032]
[1764827566590,7.4386,3175.6,3175.5,5.946]
[1764827566788,11.01105479,3175.6,3175.5,9.6993]
[1764827567094,11.01105479,3175.6,3175.5,2.3961]
[1764827567584,51.81105479,3175.6,3175.5,2.3961]
[1764827568787,51.81105479,3175.6,3175.0,2.3961]
[1764827568993,7.80325479,3175.5,3175.4,3.5499]
[1764827569879,8.72173652,3175.5,3175.4,3.5499]
[1764827570079,8.72173652,3175.5,3175.0,2.3961]
[1764827570394,7.4386,3175.1,3175.0,9.6993]
[1764827570592,8.72173652,3175.1,3175.0,9.6993]
[1764827571293,8.72173652,3175.1,3175.0,5.946]
[1764827571493,8.72173652,3175.1,3175.0,9.6993]
[1764827573093,10.39853325,3175.1,3174.5,4.16767966]
[1764827573391,5.00243652,3175.0,3174.9,3.5499]
[1764827573589,8.72173652,3175.0,3174.9,3.5499]
[1764827574292,8.72173652,3175.0,3174.9,7.3032]
[1764827574496,8.72173652,3175.0,3174.9,3.5499]
[1764827574888,8.72173652,3175.0,3174.5,4.16767966]
[1764827575195,8.72173652,3174.9,3174.8,7.3032]
[1764827576903,8.72173652,3174.9,3174.8,3.5499]
[1764827577093,3.7193,3174.6,3174.5,8.26307966]
[1764827577297,1.28330046,3174.6,3174.5,8.26307966]
[1764827578697,2.33240971,3175.1,3175.0,9.4738]
[1764827578698,1.67679673,3175.1,3175.0,9.4738]
[1764827578886,3.2078,3175.2,3175.1,7.3032]
[1764827579083,7.31723515,3175.2,3175.1,7.3032]
[1764827580800,3.57263515,3175.2,3175.1,7.3032]
[1764827581496,7.31723515,3175.2,3175.1,7.3032]
[1764827582293,3.57263515,3175.2,3175.1,7.3032]
[1764827582691,3.2078,3175.2,3175.1,7.3032]
[1764827582895,3.57283609,3175.2,3175.1,7.3032]
[1764827584690,3.2078,3175.8,3175.7,7.2907]
[1764827585399,1.348e-05,3175.9,3175.5,5.1708]
[1764827586601,2.0738,3177.0,3176.9,6.7626]
[1764827586791,5.571,3177.0,3176.9,6.7626]
[1764827586997,2.0738,3177.0,3176.9,6.7626]
[1764827587299,5.571,3177.0,3176.9,6.7626]
[1764827587502,2.0777778,3177.0,3176.9,6.76607364]
[1764827588393,5.5749778,3177.0,3176.9,6.76607364]
[1764827588591,2.0777778,3177.0,3176.9,6.76607364]
[1764827589000,0.0039778,3177.0,3176.9,6.76607364]
[1764827590399,0.00472842,3177.3,3177.2,6.7626]
[1764827590803,7.0393,3178.2,3177.1,3.2078]
[1764827591007,7.0393,3178.2,3178.1,5.0324]
[1764827591204,46.0816,3178.5,3178.1,5.0324]
[1764827591404,3.4972,3178.2,3178.1,5.0324]
[1764827591706,46.08923312,3178.5,3178.4,2.5162]
[1764827592205,46.08923312,3178.5,3177.7,3.2078]
[1764827593401,5.28923312,3178.5,3177.7,3.2078]
[1764827593903,40.8,3178.4,3178.3,2.5162]
[1764827594103,9.1131,3178.0,3177.9,5.0324]
[1764827595906,5.571,3178.0,3177.9,5.0324]
[1764827597711,9.1131,3178.0,3177.9,5.0324]
[1764827597912,9.1131,3178.0,3177.9,2.5162]
[1764827598312,9.1131,3178.0,3177.9,5.0324]
[1764827598513,5.571,3178.0,3177.9,5.0324]
[1764827599106,9.1131,3178.0,3177.9,5.0324]
[1764827599309,5.571,3178.0,3177.9,5.0324]
[1764827599515,2.0738,3178.0,3177.9,5.0324]
[1764827600315,5.571,3178.0,3177.9,5.0324]
[1764827600610,9.1131,3178.0,3177.9,5.0324]
[1764827600812,2.0738,3178.0,3177.9,5.0324]
[1764827601111,5.571,3178.0,3177.9,5.0324]
[1764827601515,9.1131,3178.0,3177.9,5.0324]
[1764827601916,5.571,3178.0,3177.9,5.0324]
[1764827603119,2.0738,3178.0,3177.9,5.0324]
[1764827603312,9.1131,3178.0,3177.9,5.0324]
[1764827603612,9.1131,3178.0,3177.9,2.5162]
[1764827603815,9.1131,3178.0,3177.9,5.0324]
[1764827604019,2.0738,3178.0,3177.9,5.0324]
[1764827604319,40.8,3178.4,3178.3,2.5162]
[1764827604516,41.65616571,3178.4,3177.7,3.2078]
[1764827604721,7.89547215,3178.3,3178.2,2.5162]
[1764827605014,5.28923312,3178.5,3178.4,5.0324]
[1764827605015,0.00763312,3178.5,3178.4,5.0324]
[1764827605511,3.2078,3179.4,3178.9,5.0324]
[1764827605712,10.2471,3179.4,3179.3,2.5162]
[1764827606009,3.4972,3178.9,3178.8,8.2402]
[1764827606312,2.0738,3179.0,3178.9,5.0324]
[1764827606313,5.571,3179.0,3178.9,5.0324]
[1764827606518,2.07747342,3179.0,3178.9,5.03613757]
[1764827607107,9.11677342,3179.0,3178.9,5.03613757]
[1764827607510,9.11677342,3179.0,3178.9,0.00373757]
[1764827607711,5.57467342,3179.0,3178.9,5.03613757]
[1764827608116,9.11677342,3179.0,3178.9,0.00373757]
[1764827608418,9.9740788,3179.0,3178.9,0.00373757]
[1764827608617,6.4319788,3179.0,3178.9,5.03613757]
[1764827608914,2.9347788,3179.0,3178.9,5.03613757]
[1764827609121,6.4319788,3179.0,3178.9,5.03613757]
[1764827609311,2.9347788,3179.0,3178.9,5.03613757]
[1764827609822,6.4319788,3179.0,3178.9,5.03613757]
[1764827610020,9.9740788,3179.0,3178.9,5.03613757]
[1764827610321,6.4319788,3179.0,3178.9,5.03613757]
[1764827610818,9.9740788,3179.0,3178.9,0.00373757]
[1764827611824,10.33345802,3179.0,3178.9,0.00373757]
[1764827612010,9.9740788,3179.0,3178.9,0.00373757]
[1764827612206,10.33379224,3179.0,3178.9,0.00373757]
[1764827612922,10.33379224,3179.0,3178.9,5.03613757]
[1764827613419,10.33379224,3179.0,3178.9,2.51993757]
[1764827613719,10.33379224,3179.0,3178.9,0.00373757]
[1764827613911,10.33379224,3179.0,3178.9,3.75563757]
[1764827614919,10.33379224,3179.0,3178.9,7.35003757]
[1764827615418,11.99862432,3179.0,3178.9,7.35003757]
[1764827616419,10.33379224,3179.0,3178.9,7.35003757]
[1764827616822,12.01071153,3179.0,3178.9,7.35003757]
[1764827617115,8.46861153,3179.0,3178.9,7.35003757]
[1764827617312,4.97141153,3179.0,3178.9,7.35003757]
[1764827617513,2.89761153,3179.0,3178.9,7.35003757]
[1764827617922,1.22069224,3179.0,3178.9,7.35003757]
[1764827623420,7.53139224,3179.0,3178.9,7.35003757]
[1764827626927,3.63109224,3179.0,3178.9,7.35003757]
[1764827627822,2.0738,3179.5,3179.2,6.5594]
[1764827628029,9.10471929,3179.8,3179.7,6.5594]
[1764827628223,3.75071929,3180.0,3179.7,6.5594]
[1764827628525,5.6884,3180.0,3179.9,9.7672]
[1764827628726,9.5016,3180.0,3179.9,9.7672]
[1764827628927,9.50510064,3180.0,3179.9,9.7672]
[1764827629527,5.69190064,3180.0,3179.9,9.7672]
[1764827630229,9.50510064,3180.0,3179.9,9.7672]
[1764827630923,5.69190064,3180.0,3179.9,9.7672]
[1764827631729,9.50510064,3180.0,3179.9,9.7672]
[1764827631928,2.07730064,3180.0,3179.9,9.7672]
[1764827632728,5.69190064,3180.0,3179.9,9.7672]
[1764827633233,0.00350064,3180.0,3179.9,9.7672]
[1764827635734,5.90650064,3180.0,3179.9,9.7672]
[1764827636437,9.71970064,3180.0,3179.9,9.7672]
[1764827636732,0.00350064,3180.0,3179.9,9.7672]
[1764827636947,11.17028064,3180.0,3179.9,3.2078]
[1764827637538,11.17028064,3180.0,3179.9,6.4875]
[1764827637838,11.17028064,3180.0,3179.9,3.2078]
[1764827638229,11.17028064,3180.0,3179.9,6.4875]
[1764827638442,12.62086064,3180.0,3179.9,3.2078]
[1764827639029,11.17028064,3180.0,3179.9,3.2078]
[1764827639427,11.17028064,3180.0,3179.9,6.4875]
[1764827639626,11.17028064,3180.0,3179.9,9.7672]
[1764827639837,12.27501332,3180.0,3179.9,9.7672]
[1764827640032,8.46181332,3180.0,3179.9,9.7672]
[1764827640338,7.01123332,3180.0,3179.9,9.7672]
[1764827641138,6.6658195,3180.0,3179.9,9.7672]
[1764827641331,6.6658195,3180.0,3179.9,11.21778]
[1764827641332,0.00350064,3180.0,3179.9,11.21778]
[1764827641533,1.10521498,3180.4,3180.3,6.5594]
[1764827641732,1.10521498,3180.4,3180.3,9.7672]
[1764827641927,1.10521498,3180.4,3180.3,11.21778]
[1764827641928,0.71174729,3180.4,3180.3,11.21778]
[1764827642134,3.2078,3181.2,3181.1,6.5594]
[1764827642434,0.34551032,3181.2,3181.1,6.5594]
[1764827642738,7.4278,3181.5,3181.4,6.5594]
[1764827643035,7.4278,3181.5,3181.4,3.21139482]
[1764827643036,9.71944844,3181.5,3181.4,3.21139482]
[1764827643242,7.4278,3181.1,3181.0,3.2078]
[1764827643535,8.87838,3181.1,3181.0,3.2078]
[1764827644041,7.4278,3181.1,3181.0,3.2078]
[1764827644333,7.276,3181.1,3181.0,6.1229814]
[1764827644532,7.276,3181.1,3181.0,9.0350814]
[1764827644937,43.09164844,3181.5,3181.0,9.0350814]
[1764827645136,9.56764844,3181.5,3181.4,2.9121]
[1764827645338,9.56764844,3181.5,3181.4,5.8242]
[1764827645840,5.89804844,3181.5,3181.4,5.8242]
[1764827646143,2.29164844,3181.5,3181.4,5.8242]
[1764827646439,5.89804844,3181.5,3181.4,5.8242]
[1764827646936,7.276,3181.1,3181.0,9.0350814]
[1764827647132,7.276,3181.1,3181.0,3.2108814]
[1764827647335,7.276,3181.1,3181.0,6.1229814]
[1764827647735,7.276,3181.1,3181.0,9.0350814]
[1764827650142,7.31919691,3181.1,3181.0,9.0350814]
[1764827650647,7.31919691,3181.1,3181.0,3.2108814]
[1764827652139,7.31919691,3181.1,3181.0,6.1229814]
[1764827652736,7.31919691,3181.1,3181.0,9.0350814]
[1764827652941,7.31919691,3181.1,3181.0,6.1229814]
[1764827653135,7.31919691,3181.1,3181.0,0.0030814]
[1764827654239,7.276,3180.9,3180.8,0.00472077]
[1764827655344,7.31919691,3180.9,3180.8,0.00739879]
[1764827655540,7.276,3180.1,3180.0,3.2078]
[1764827656047,7.276,3180.1,3180.0,6.5929]
[1764827656245,7.31919691,3180.1,3180.0,10.2938]
[1764827656445,7.31919691,3180.1,3180.0,3.2078]
[1764827656645,7.31919691,3180.1,3180.0,3.21076928]
[1764827657645,7.31919691,3180.1,3180.0,6.59586928]
[1764827657948,7.31919691,3180.1,3180.0,10.29676928]
[1764827658950,0.04319691,3180.1,3180.0,10.29676928]
[1764827659747,0.04319691,3180.1,3180.0,11.39466928]
[1764827660350,0.04319691,3180.1,3180.0,15.48217003]
[1764827660544,0.00472077,3180.4,3180.3,7.086]
[1764827665655,3.61112077,3180.4,3180.3,7.086]
[1764827665948,0.00472077,3180.4,3180.3,10.2938]
[1764827666457,3.61112077,3180.4,3180.3,10.2938]
[1764827666751,0.00472077,3180.4,3180.3,10.2938]
[1764827667057,3.61112077,3180.4,3180.3,10.2938]
[1764827667248,7.28072077,3180.4,3180.3,10.2938]
[1764827668252,7.28072077,3180.4,3180.3,7.086]
[1764827668553,7.28072077,3180.4,3180.3,10.2938]
[1764827668746,3.61112077,3180.4,3180.3,10.2938]
[1764827669051,7.28072077,3180.4,3180.3,10.2938]
[1764827669446,3.61112077,3180.4,3180.3,10.2938]
[1764827669856,0.00472077,3180.4,3180.3,10.2938]
[1764827671456,0.00472077,3180.4,3180.0,7.08896928]
[1764827671457,7.276,3180.1,3180.0,7.08896928]
[1764827672548,7.276,3180.1,3180.0,3.38806928]
[1764827672850,7.276,3180.1,3180.0,7.08896928]
[1764827673247,7.276,3180.1,3180.0,3.38806928]
[1764827673746,7.276,3180.1,3180.0,7.08896928]
[1764827673954,7.276,3180.1,3180.0,0.00296928]
[1764827674358,8.36065312,3180.1,3180.0,0.00296928]
[1764827674550,6.7989,3179.8,3179.7,0.00472077]
[1764827674750,3.3353,3179.8,3179.7,3.52172077]
[1764827675054,6.7989,3179.8,3179.7,3.52172077]
[1764827675658,6.7989,3179.8,3179.7,0.00778503]
[1764827677157,6.7989,3179.8,3179.7,7.24228503]
[1764827677355,10.01142077,3180.4,3180.3,7.2345]
[1764827677658,11.09383389,3180.4,3180.3,7.2345]
[1764827677858,11.09383389,3180.4,3180.3,3.517]
[1764827678648,7.88603389,3180.4,3180.3,3.517]
[1764827680360,7.88603389,3180.4,3180.3,7.2345]
[1764827680565,8.8688,3181.0,3180.3,14.40452507]
[1764827680749,1.08374781,3180.9,3180.3,14.40452507]
[1764827680954,1.08375364,3180.8,3180.3,14.40452507]
[1764827681254,2.1849,3181.0,3180.3,6.4027]
[1764827681255,6.6839,3180.4,3180.3,6.4027]
[1764827681559,8.6354,3180.5,3180.4,6.4686]
[1764827681757,8.6354,3180.5,3180.4,3.1949]
[1764827682355,8.6354,3180.5,3180.3,3.2078]
[1764827682356,6.6839,3180.4,3180.3,6.4027]
[1764827682562,1.9515,3180.5,3180.4,6.4686]
[1764827682759,2.1849,3181.0,3180.4,6.4686]
[1764827682961,3.2264,3180.5,3180.4,6.4686]
[1764827683557,6.6839,3180.4,3180.3,9.6764]
[1764827683765,3.57276429,3180.4,3180.3,9.6764]
[1764827684064,7.7677796,3180.4,3180.3,6.4686]
[1764827684361,1.0838796,3180.4,3180.3,9.6764]
[1764827684561,5.3927,3181.0,3180.3,9.6764]
[1764827684764,7.76813991,3180.9,3180.8,3.1949]
[1764827684960,1.08423991,3180.9,3180.8,6.4686]
[1764827685155,7.76813991,3180.9,3180.8,3.1949]
[1764827685356,7.76813991,3180.9,3180.3,3.2078]
[1764827685554,7.76813991,3180.8,3180.7,3.1949]
[1764827685862,7.76813991,3180.8,3180.7,6.4686]
[1764827687072,7.76813991,3180.8,3180.7,3.1949]
[1764827687255,7.76813991,3180.8,3180.7,6.4686]
[1764827687864,4.31063991,3180.8,3180.7,6.4686]
[1764827688670,6.6839,3180.4,3180.3,9.6764]
[1764827688957,6.6839,3180.4,3180.3,6.4027]
[1764827689364,8.6354,3180.0,3179.9,6.4686]
[1764827689558,9.8917,3180.2,3180.1,6.4686]
[1764827689758,10.97586253,3180.2,3180.1,6.4686]
[1764827690159,10.97586253,3180.2,3179.5,1.6569]
[1764827690363,3.57284883,3180.1,3180.0,6.4686]
[1764827690566,6.6839,3180.1,3180.0,6.4686]
[1764827690758,3.2264,3180.1,3180.0,6.4686]
[1764827690959,6.6839,3180.1,3180.0,6.4686]
[1764827691768,6.6839,3180.1,3180.0,3.1949]
[1764827691966,6.6839,3179.9,3179.8,9.6764]
[1764827692269,3.2264,3179.9,3179.8,9.6764]
[1764827692871,6.6839,3179.9,3179.8,9.6764]
[1764827693664,1.9515,3180.5,3179.9,6.4686]
[1764827693870,1.08381893,3180.4,3179.9,6.4686]
[1764827694072,7.76771893,3180.3,3180.2,3.1949]
[1764827694267,48.56771893,3180.3,3180.2,3.1949]
[1764827694466,7.76771893,3180.3,3180.2,3.1949]
[1764827695071,3.2264,3179.9,3179.8,9.6764]
[1764827696573,5.1779,3180.0,3179.9,6.4686]
[1764827696765,1.9515,3180.5,3179.9,6.4686]
[1764827696974,1.08381417,3180.4,3179.9,6.4686]
[1764827697173,7.76771417,3180.3,3180.2,3.1949]
[1764827697470,7.76771417,3180.3,3180.2,6.4686]
[1764827699971,1.08381417,3180.3,3180.2,6.4686]
[1764827700271,4.31021417,3180.3,3180.2,6.4686]
[1764827700470,7.76771417,3180.3,3180.2,6.4686]
[1764827702770,1.08381417,3180.3,3180.2,6.4686]
[1764827703075,11.8432,3180.5,3180.4,6.4686]
[1764827703276,12.92759957,3180.5,3180.4,6.4686]
[1764827704369,12.92759957,3180.5,3180.4,3.1949]
[1764827704668,12.92759957,3180.5,3180.4,3.1594]
[1764827704874,12.92759957,3180.5,3180.4,6.5428]
[1764827705268,4.29219957,3180.5,3180.4,6.5428]
[1764827705467,5.49944844,3181.5,3180.9,3.3834]
[1764827705671,1.08458976,3181.4,3180.9,3.3834]
[1764827705878,6.87009337,3181.3,3181.2,3.1594]
[1764827706174,7.60807683,3181.3,3180.7,3.2078]
[1764827706375,7.60807683,3181.2,3181.1,3.1594]
[1764827706981,7.60807683,3181.2,3181.1,6.5428]
[1764827707366,0.34659337,3181.2,3181.1,6.5428]
[1764827707573,12.02294844,3181.5,3181.4,6.5428]
[1764827707766,6.42273488,3181.5,3181.4,6.5428]
[1764827708171,9.89673488,3181.5,3181.4,6.5428]
[1764827708471,9.16177241,3181.5,3181.4,6.5428]
[1764827709374,8.81514844,3181.5,3181.4,3.1594]
[1764827709582,6.5235,3181.2,3181.1,9.7506]
[1764827710373,3.0495,3181.2,3181.1,9.7506]
[1764827710980,6.5235,3181.2,3181.1,3.2078]
[1764827711180,6.5235,3181.2,3180.6,14.7248]
[1764827711375,6.5235,3181.2,3180.6,3.2078]
[1764827711579,6.5235,3181.2,3180.6,13.21990943]
[1764827712187,3.0495,3180.7,3180.6,26.28770943]
[1764827712485,6.5235,3180.7,3180.6,13.81170943]
[1764827712786,3.0495,3180.7,3180.6,13.81170943]
[1764827713086,8.3766,3181.0,3180.9,6.5428]
[1764827713277,4.9026,3181.0,3180.9,6.5428]
[1764827713476,5.49944844,3181.5,3180.9,6.5428]
[1764827713680,1.07932321,3181.4,3180.9,6.5428]
[1764827713881,7.60282321,3181.3,3181.2,3.1594]
[1764827714182,7.60282321,3181.3,3180.6,3.2078]
[1764827714387,0.34590291,3181.2,3180.6,3.2078]
[1764827714589,40.8,3181.4,3180.6,3.2078]
[1764827714891,1.07933837,3181.3,3180.6,3.2078]
[1764827715187,6.86940744,3181.2,3180.6,3.2078]
[1764827715485,6.5235,3181.2,3181.1,6.5428]
[1764827715692,3.39540899,3181.2,3181.1,6.5428]
[1764827715887,0.34590899,3181.2,3181.1,6.5428]
[1764827716083,3.0495,3181.3,3181.2,6.5428]
[1764827716394,7.60276738,3181.3,3181.2,3.1594]
[1764827716693,7.60276738,3181.3,3180.8,12.476]
[1764827716989,6.5235,3181.3,3181.2,6.5428]
[1764827717190,6.8693926,3181.3,3181.2,6.5428]
[1764827717385,0.3458926,3181.3,3181.2,7.95618494]
[1764827717592,3.05274844,3181.5,3181.4,6.5428]
[1764827718085,0.00324844,3181.5,3181.4,10.60232435]
[1764827721194,3.2078,3182.2,3181.9,6.5428]
[1764827721389,9.7313,3182.2,3182.1,6.5428]
[1764827722195,9.7341048,3182.2,3182.1,3.16253793]
[1764827723296,9.7341048,3182.2,3182.1,6.54593793]
[1764827723491,9.7341048,3182.2,3182.1,3.16253793]
[1764827723692,9.7341048,3182.2,3182.1,0.00313793]
[1764827724197,9.7341048,3182.2,3182.1,3.16253793]
[1764827727293,3.2106048,3182.2,3182.1,5.89063793]
[1764827727693,6.0268048,3182.2,3182.1,5.89063793]
[1764827728298,8.9126048,3182.2,3182.1,5.89063793]
[1764827728900,3.2078,3182.7,3182.1,5.89063793]
[1764827729101,7.5551,3182.5,3182.4,5.6436]
[1764827729801,4.6727393,3182.5,3182.4,5.6436]
[1764827729994,7.5585393,3182.5,3182.4,5.6436]
[1764827731194,3.2078,3182.7,3182.6,5.6436]
[1764827731396,5.702,3182.6,3182.5,8.8514]
[1764827731595,5.702,3182.6,3182.5,3.2078]
[1764827731800,2.8162,3182.6,3182.5,8.8514]
[1764827732102,5.702,3182.6,3182.5,8.8514]
[1764827732304,5.70464979,3182.6,3182.5,8.8514]
[1764827733103,2.81884979,3182.6,3182.5,8.8514]
[1764827734901,0.00264979,3182.6,3182.5,8.8514]
[1764827735995,2.74164979,3182.6,3182.5,8.8514]
[1764827737202,7.4714,3183.0,3182.9,2.7063]
[1764827737412,7.81762165,3183.0,3182.9,2.7063]
[1764827737906,7.81762165,3183.0,3182.5,3.2078]
[1764827738104,7.4714,3183.0,3182.5,3.2078]
[1764827738305,7.47401035,3183.0,3182.9,2.7063]
[1764827739809,7.47401035,3183.0,3182.9,5.5305]
[1764827741711,7.47401035,3183.0,3182.9,8.7383]
[1764827741909,4.59471035,3183.0,3182.9,8.7383]
[1764827742521,1.85571035,3183.0,3182.9,8.7383]
[1764827742712,0.00261035,3183.0,3182.9,8.7383]
[1764827742913,5.6183,3183.4,3183.3,5.5305]
[1764827743316,2.739,3183.4,3183.3,5.5305]
[1764827743920,2.7429319,3183.4,3183.3,5.5305]
[1764827744515,0.0039319,3183.4,3183.3,5.5305]
[1764827745322,3.2078,3183.6,3183.5,5.5305]
[1764827745820,10.6792,3184.0,3183.9,2.7063]
[1764827746013,11.76517824,3184.0,3183.5,3.2078]
[1764827746213,2.739,3183.6,3183.5,8.7383]